[Event "Eurasia Open Cup 2019"]
[Site "Ekaterinburg"]
[Date "2019.08.06"]
[Round "6.35"]
[White "Polosin, Evgeni"]
[Black "Protopopova, Anastasiya"]
[Result "1-0"]
[ECO "B50"]
[WhiteElo "2153"]
[BlackElo "2272"]
[Annotator "NA"]
[PlyCount "93"]
[EventDate "2019.07.31"]
[EventType "swiss"]
[EventCountry "RUS"]
[SourceTitle "playchess.com"]
[Source "ChessBase"]
[SourceQuality "1"]
[TimeControl "5400+30"]

1. e4 {[%emt 0:07:06]} c5 {[%emt 0:00:00]} 2. Nf3 {[%emt 0:00:36]} d6 {[%emt 0:00:00]} 3. Bc4 {[%emt 0:02:49]} Nf6 {[%emt 0:06:19]} 4. d3 {[%emt 0:02:18]} e6 {[%emt 0:01:02]} 5. O-O {[%emt 0:01:55]} a6 {[%emt 0:03:26]} 6. Bb3 {[%emt 0:01:19]} Be7 {[%emt 0:07:53]} 7. c3 {[%emt 0:01:45]} O-O {[%emt 0:00:01]} 8. a4 {[%emt 0:01:34]} Nc6 {[%emt 0:03:41]} 9. Re1 {[%emt 0:05:09]} d5 {[%emt 0:08:26]} 10. e5 {[%emt 0:00:47]} Nd7 {[%emt 0:00:49]} 11. Nbd2 {[%emt 0:02:05]} Qc7 {[%emt 0:06:35]} 12. d4 {[%emt 0:05:21]} cxd4 {[%emt 0:00:51]} 13. cxd4 {[%emt 0:00:05]} Nb4 {[%emt 0:00:14]} 14. Nf1 {[%emt 0:04:28]} Nb6 {[%emt 0:02:45]} 15. Ne3 {[%emt 0:16:21]} Rd8 {[%emt 0:06:27]} 16. Qe2 {[%emt 0:04:53]} Bd7 {[%emt 0:02:12]} 17. Bd2 {[%emt 0:03:53]} Qb8 {[%emt 0:14:53]} 18. h4 {[%emt 0:09:58]} Rc8 {[%emt 0:10:45]} 19. h5 {[%emt 0:04:45]} h6 {[%emt 0:03:24]} 20. Bc3 {[%emt 0:01:20]} a5 {[%emt 0:00:45]} 21. Nh2 {[%emt 0:03:59]} Rc7 {[%emt 0:00:20]} 22. Nhg4 {[%emt 0:00:12]} Qe8 {[%emt 0:00:30]} 23. Qd1 {[%emt 0:00:28]} Rac8 {[%emt 0:01:09]} 24. f4 {[%emt 0:01:47]} Rxc3 {[%emt 0:01:46]} 25. bxc3 {[%emt 0:00:07]} Rxc3 {[%emt 0:00:05]} 26. Rb1 {[%emt 0:05:14]} Rd3 {[%emt 0:03:17]} 27. Qf3 {[%emt 0:02:34]} Rxd4 {[%emt 0:00:30]} 28. f5 {[%emt 0:01:11]} Bg5 {[%emt 0:01:52]} 29. f6 {[%emt 0:00:43]} Rf4 {[%emt 0:02:31]} 30. Qg3 {[%emt 0:00:17]} d4 {[%emt 0:01:59]} 31. Nc2 {[%emt 0:02:00]} d3 {[%emt 0:05:26]} 32. Nxb4 {[%emt 0:01:11]} d2 {[%emt 0:01:11]} 33. Rf1 {[%emt 0:00:40]} Rxb4 {[%emt 0:02:47]} 34. fxg7 {[%emt 0:00:04]} Rxg4 {[%emt 0:00:24]} 35. Qxg4 {[%emt 0:00:04]} Nxa4 {[%emt 0:01:36]} 36. Bxa4 {[%emt 0:01:09]} Bxa4 {[%emt 0:00:01]} 37. Rxb7 {[%emt 0:00:14]} Bc2 {[%emt 0:01:19]} 38. Rc7 {[%emt 0:01:10]} d1=Q {[%emt 0:00:44]} 39. Rxd1 {[%emt 0:00:39]} Bxd1 {[%emt 0:00:05]} 40. Qxd1 {[%emt 0:00:00]} Kxg7 {[%emt 0:00:14]} 41. Qd7 {[%emt 0:04:29]} Qf8 {[%emt 0:00:12]} 42. Qxe6 {[%emt 0:01:25]} Kg8 {[%emt 0:01:33]} 43. Qd7 {[%emt 0:01:31]} Be3+ {[%emt 0:00:22]} 44. Kf1 {[%emt 0:00:16]} Kg7 {[%emt 0:00:38]} 45. e6 {[%emt 0:00:09]} Bb6 {[%emt 0:00:51]} 46. e7 {[%emt 0:01:04]} Qa8 {[%emt 0:00:00]} 47. e8=Q {[%emt 0:00:40]} 1-0

[Event "Eurasia Open Cup 2019"]
[Site "Ekaterinburg"]
[Date "2019.08.06"]
[Round "6.36"]
[White "Fedotov, Alexey"]
[Black "Zasukhin, Vadim"]
[Result "0-1"]
[ECO "D00"]
[WhiteElo "2141"]
[BlackElo "2249"]
[Annotator "NA"]
[PlyCount "120"]
[EventDate "2019.07.31"]
[EventType "swiss"]
[EventCountry "RUS"]
[SourceTitle "playchess.com"]
[Source "ChessBase"]
[SourceQuality "1"]
[TimeControl "5400+30"]

1. d4 {[%emt 0:00:00]} Nf6 {[%emt 0:00:00]} 2. Bf4 {[%emt 0:00:00]} d5 {[%emt 0:00:05]} 3. e3 {[%emt 0:00:00]} c5 {[%emt 0:00:04]} 4. dxc5 {[%emt 0:00:11]} Qa5+ {[%emt 0:01:06]} 5. Nc3 {[%emt 0:00:25]} e6 {[%emt 0:02:07]} 6. Qd4 {[%emt 0:06:20]} Nc6 {[%emt 0:15:57]} 7. Bb5 {[%emt 0:00:15]} Bd7 {[%emt 0:09:07]} 8. Bxc6 {[%emt 0:00:45]} Bxc6 {[%emt 0:06:00]} 9. b4 {[%emt 0:01:36]} Qa3 {[%emt 0:00:00]} 10. Nge2 {[%emt 0:06:21]} a5 {[%emt 0:04:11]} 11. b5 {[%emt 0:01:50]} Bxc5 {[%emt 0:02:03]} 12. Qd3 {[%emt 0:01:56]} Bd7 {[%emt 0:00:20]} 13. Rb1 {[%emt 0:01:40]} a4 {[%emt 0:06:10]} 14. O-O {[%emt 0:15:11]} O-O {[%emt 0:01:16]} 15. Nd4 {[%emt 0:21:13]} Rfc8 {[%emt 0:02:38]} 16. Nce2 {[%emt 0:08:36]} Qxa2 {[%emt 0:01:25]} 17. Ra1 {[%emt 0:12:09]} Qc4 {[%emt 0:00:15]} 18. Qxc4 {[%emt 0:00:29]} dxc4 {[%emt 0:00:05]} 19. Nc3 {[%emt 0:02:09]} Nd5 {[%emt 0:06:05]} 20. Nxd5 {[%emt 0:00:04]} exd5 {[%emt 0:00:05]} 21. c3 {[%emt 0:05:32]} f6 {[%emt 0:07:45]} 22. Rfb1 {[%emt 0:00:59]} g5 {[%emt 0:01:23]} 23. Bg3 {[%emt 0:00:14]} b6 {[%emt 0:00:14]} 24. Ra2 {[%emt 0:03:18]} Ra5 {[%emt 0:01:23]} 25. h3 {[%emt 0:01:25]} Kf7 {[%emt 0:00:09]} 26. Kf1 {[%emt 0:01:05]} Ke7 {[%emt 0:01:18]} 27. Ke1 {[%emt 0:00:30]} h5 {[%emt 0:02:13]} 28. Kd2 {[%emt 0:01:23]} h4 {[%emt 0:00:16]} 29. Bh2 {[%emt 0:00:08]} Rg8 {[%emt 0:00:28]} 30. f3 {[%emt 0:00:24]} f5 {[%emt 0:00:16]} 31. Be5 {[%emt 0:05:00]} g4 {[%emt 0:02:30]} 32. hxg4 {[%emt 0:00:04]} fxg4 {[%emt 0:00:04]} 33. f4 {[%emt 0:00:55]} h3 {[%emt 0:06:25]} 34. g3 {[%emt 0:01:36]} Bxd4 {[%emt 0:00:03]} 35. Bxd4 {[%emt 0:02:01]} Rxb5 {[%emt 0:00:04]} 36. Rxb5 {[%emt 0:00:31]} Bxb5 {[%emt 0:00:03]} 37. e4 {[%emt 0:01:07]} dxe4 {[%emt 0:02:12]} 38. Ke3 {[%emt 0:00:07]} Bd7 {[%emt 0:00:32]} 39. Bxb6 {[%emt 0:00:28]} Rb8 {[%emt 0:00:48]} 40. Bc5+ {[%emt 0:00:14]} Ke8 {[%emt 0:00:51]} 41. Bb4 {[%emt 0:00:07]} Rb6 {[%emt 0:02:02]} 42. Kd4 {[%emt 0:00:45]} Re6 {[%emt 0:01:06]} 43. f5 {[%emt 0:01:17]} Rh6 {[%emt 0:00:34]} 44. Rh2 {[%emt 0:00:10]} Bxf5 {[%emt 0:00:03]} 45. Ke5 {[%emt 0:00:18]} Rh5 {[%emt 0:01:57]} 46. Kd5 {[%emt 0:01:04]} Bh7+ {[%emt 0:01:54]} 47. Kxc4 {[%emt 0:00:17]} Rf5 {[%emt 0:00:44]} 48. Kd4 {[%emt 0:00:45]} Rf3 {[%emt 0:00:23]} 49. Bd6 {[%emt 0:00:21]} Rd3+ {[%emt 0:04:01]} 50. Ke5 {[%emt 0:00:07]} Kd7 {[%emt 0:00:21]} 51. Bb4 {[%emt 0:00:23]} Rxg3 {[%emt 0:00:07]} 52. Kf4 {[%emt 0:01:06]} Rg2 {[%emt 0:00:23]} 53. Rh1 {[%emt 0:00:07]} h2 {[%emt 0:00:41]} 54. Bc5 {[%emt 0:00:21]} g3 {[%emt 0:01:03]} 55. c4 {[%emt 0:01:00]} a3 {[%emt 0:02:54]} 56. Ra1 {[%emt 0:00:30]} a2 {[%emt 0:00:13]} 57. Bd4 {[%emt 0:00:14]} Rd2 {[%emt 0:00:36]} 58. Kxg3 {[%emt 0:00:41]} Rxd4 {[%emt 0:00:09]} 59. Kxh2 {[%emt 0:00:04]} e3 {[%emt 0:00:39]} 60. Kg3 {[%emt 0:00:11]} e2 {[%emt 0:00:16]} 0-1

[Event "Eurasia Open Cup 2019"]
[Site "Ekaterinburg"]
[Date "2019.08.06"]
[Round "6.37"]
[White "Akhtariev, Andrey"]
[Black "Shvetsov, Maksim"]
[Result "1-0"]
[ECO "B45"]
[WhiteElo "2243"]
[BlackElo "1964"]
[Annotator "NA"]
[PlyCount "69"]
[EventDate "2019.07.31"]
[EventType "swiss"]
[EventCountry "RUS"]
[SourceTitle "playchess.com"]
[Source "ChessBase"]
[SourceQuality "1"]
[TimeControl "5400+30"]

1. e4 {[%emt 0:00:01]} c5 {[%emt 0:00:00]} 2. Nf3 {[%emt 0:00:36]} Nc6 {[%emt 0:00:00]} 3. d4 {[%emt 0:00:00]} cxd4 {[%emt 0:00:00]} 4. Nxd4 {[%emt 0:00:00]} Nf6 {[%emt 0:00:00]} 5. Nc3 {[%emt 0:00:00]} e6 {[%emt 0:00:00]} 6. Ndb5 {[%emt 0:00:10]} Bb4 {[%emt 0:00:00]} 7. a3 {[%emt 0:00:03]} Bxc3+ {[%emt 0:00:00]} 8. Nxc3 {[%emt 0:00:02]} d5 {[%emt 0:00:00]} 9. exd5 {[%emt 0:00:03]} exd5 {[%emt 0:00:00]} 10. Bd3 {[%emt 0:00:03]} O-O {[%emt 0:00:00]} 11. O-O {[%emt 0:00:03]} d4 {[%emt 0:00:00]} 12. Ne2 {[%emt 0:00:33]} Re8 {[%emt 0:00:00]} 13. Bg5 {[%emt 0:00:22]} Qd6 {[%emt 0:00:35]} 14. h3 {[%emt 0:01:52]} Bd7 {[%emt 0:02:34]} 15. Bf4 {[%emt 0:01:57]} Qd5 {[%emt 0:00:52]} 16. c3 {[%emt 0:03:41]} dxc3 {[%emt 0:01:16]} 17. Nxc3 {[%emt 0:00:11]} Qd4 {[%emt 0:04:35]} 18. Bg3 {[%emt 0:02:47]} Rad8 {[%emt 0:00:54]} 19. Qc2 {[%emt 0:05:23]} Qb6 {[%emt 0:05:36]} 20. Rad1 {[%emt 0:03:10]} Be6 {[%emt 0:01:10]} 21. Na4 {[%emt 0:06:58]} Qa5 {[%emt 0:03:18]} 22. b4 {[%emt 0:02:39]} Qg5 {[%emt 0:00:38]} 23. Nc5 {[%emt 0:01:52]} Nd4 {[%emt 0:01:25]} 24. Qb2 {[%emt 0:01:25]} Nh5 {[%emt 0:21:51]} 25. Nxb7 {[%emt 0:15:13]} Nxg3 {[%emt 0:00:07]} 26. fxg3 {[%emt 0:00:24]} Rd5 {[%emt 0:18:38]} 27. Bc4 {[%emt 0:04:54]} Qe3+ {[%emt 0:01:11]} 28. Kh2 {[%emt 0:00:19]} Rb5 {[%emt 0:35:29]} 29. Bxe6 {[%emt 0:02:57]} Nxe6 {[%emt 0:03:18]} 30. Nd6 {[%emt 0:00:08]} Rbb8 {[%emt 0:00:29]} 31. Nxe8 {[%emt 0:00:26]} Rxe8 {[%emt 0:00:31]} 32. Rd7 {[%emt 0:00:11]} Rf8 {[%emt 0:00:00]} 33. Qf2 {[%emt 0:00:13]} Qxa3 {[%emt 0:01:01]} 34. Rxf7 {[%emt 0:00:36]} Qxb4 {[%emt 0:00:28]} 35. Qf5 {[%emt 0:00:00]} 1-0

[Event "Eurasia Open Cup 2019"]
[Site "Ekaterinburg"]
[Date "2019.08.06"]
[Round "6.38"]
[White "Miroshnik, Ekaterina"]
[Black "Schepetkova, Margarita"]
[Result "1-0"]
[ECO "E14"]
[WhiteElo "2103"]
[BlackElo "2241"]
[Annotator "NA"]
[PlyCount "82"]
[EventDate "2019.07.31"]
[EventType "swiss"]
[EventCountry "RUS"]
[SourceTitle "playchess.com"]
[Source "ChessBase"]
[SourceQuality "1"]
[TimeControl "5400+30"]

1. d4 {[%emt 0:00:00]} Nf6 {[%emt 0:00:00]} 2. c4 {[%emt 0:00:00]} e6 {[%emt 0:00:00]} 3. Nf3 {[%emt 0:00:00]} b6 {[%emt 0:00:00]} 4. e3 {[%emt 0:00:00]} Bb7 {[%emt 0:00:12]} 5. Bd3 {[%emt 0:00:00]} d5 {[%emt 0:00:14]} 6. cxd5 {[%emt 0:00:12]} exd5 {[%emt 0:00:08]} 7. O-O {[%emt 0:00:03]} Bd6 {[%emt 0:00:27]} 8. Nc3 {[%emt 0:00:07]} a6 {[%emt 0:00:16]} 9. b3 {[%emt 0:00:06]} O-O {[%emt 0:00:18]} 10. Bb2 {[%emt 0:00:03]} Nbd7 {[%emt 0:00:58]} 11. Ne2 {[%emt 0:00:12]} Ne4 {[%emt 0:06:54]} 12. Nf4 {[%emt 0:11:06]} Qe7 {[%emt 0:17:29]} 13. Be2 {[%emt 0:02:15]} Rae8 {[%emt 0:06:32]} 14. Nd3 {[%emt 0:01:49]} f6 {[%emt 0:00:40]} 15. Rc1 {[%emt 0:02:03]} g6 {[%emt 0:05:50]} 16. Re1 {[%emt 0:01:52]} Qg7 {[%emt 0:00:14]} 17. Bf1 {[%emt 0:01:32]} Qh6 {[%emt 0:00:12]} 18. g3 {[%emt 0:00:15]} Rf7 {[%emt 0:01:35]} 19. Rc2 {[%emt 0:07:09]} Nf8 {[%emt 0:02:40]} 20. Qc1 {[%emt 0:01:34]} Ne6 {[%emt 0:02:32]} 21. Ba3 {[%emt 0:02:00]} c5 {[%emt 0:01:20]} 22. Bg2 {[%emt 0:03:25]} Rc7 {[%emt 0:03:33]} 23. dxc5 {[%emt 0:12:34]} bxc5 {[%emt 0:00:36]} 24. Rd1 {[%emt 0:06:29]} Rec8 {[%emt 0:02:12]} 25. Nb2 {[%emt 0:04:22]} Bf8 {[%emt 0:01:16]} 26. Ne1 {[%emt 0:10:48]} Qh5 {[%emt 0:01:58]} 27. Na4 {[%emt 0:05:31]} c4 {[%emt 0:14:15]} 28. Bf3 {[%emt 0:13:29]} Qf5 {[%emt 0:04:26]} 29. Bxf8 {[%emt 0:02:33]} cxb3 {[%emt 0:07:31]} 30. Rxc7 {[%emt 0:00:12]} Rxc7 {[%emt 0:00:06]} 31. Qb2 {[%emt 0:05:48]} Rc2 {[%emt 0:03:41]} 32. Qxb3 {[%emt 0:01:37]} Rxf2 {[%emt 0:01:18]} 33. Qxb7 {[%emt 0:01:47]} Rxf3 {[%emt 0:01:10]} 34. Nxf3 {[%emt 0:04:04]} Qxf3 {[%emt 0:00:31]} 35. Qxd5 {[%emt 0:00:37]} Qxe3+ {[%emt 0:01:29]} 36. Kg2 {[%emt 0:00:00]} Qe2+ {[%emt 0:02:16]} 37. Kg1 {[%emt 0:00:26]} Kxf8 {[%emt 0:01:09]} 38. Rb1 {[%emt 0:01:15]} N6g5 {[%emt 0:01:55]} 39. Qd8+ {[%emt 0:01:35]} Kg7 {[%emt 0:00:35]} 40. Rb7+ {[%emt 0:00:00]} Kh6 {[%emt 0:00:00]} 41. Qf8+ {[%emt 0:00:00]} Kh5 {[%emt 0:00:00]} 1-0

[Event "Eurasia Open Cup 2019"]
[Site "Ekaterinburg"]
[Date "2019.08.06"]
[Round "6.39"]
[White "Pranizin, Gennady"]
[Black "Morgachev, Sergey"]
[Result "1-0"]
[ECO "B25"]
[WhiteElo "2232"]
[BlackElo "1965"]
[Annotator "NA"]
[PlyCount "81"]
[EventDate "2019.07.31"]
[EventType "swiss"]
[EventCountry "RUS"]
[SourceTitle "playchess.com"]
[Source "ChessBase"]
[SourceQuality "1"]
[TimeControl "5400+30"]

1. e4 {[%emt 0:00:00]} c5 {[%emt 0:00:00]} 2. Nc3 {[%emt 0:00:00]} Nc6 {[%emt 0:00:00]} 3. g3 {[%emt 0:00:00]} g6 {[%emt 0:00:00]} 4. Bg2 {[%emt 0:00:00]} Bg7 {[%emt 0:00:00]} 5. Nge2 {[%emt 0:00:00]} e6 {[%emt 0:00:11]} 6. O-O {[%emt 0:00:00]} Nge7 {[%emt 0:00:11]} 7. d3 {[%emt 0:00:03]} d6 {[%emt 0:00:58]} 8. Bg5 {[%emt 0:00:00]} O-O {[%emt 0:02:24]} 9. Qd2 {[%emt 0:00:06]} Rb8 {[%emt 0:14:12]} 10. a4 {[%emt 0:03:04]} a6 {[%emt 0:03:46]} 11. Bh6 {[%emt 0:01:28]} e5 {[%emt 0:08:45]} 12. Bxg7 {[%emt 0:05:34]} Kxg7 {[%emt 0:00:02]} 13. f4 {[%emt 0:00:06]} f6 {[%emt 0:07:39]} 14. Rf2 {[%emt 0:02:29]} Bg4 {[%emt 0:09:38]} 15. h3 {[%emt 0:09:47]} Bxe2 {[%emt 0:00:46]} 16. Qxe2 {[%emt 0:00:49]} Qd7 {[%emt 0:03:18]} 17. Raf1 {[%emt 0:00:53]} Nd4 {[%emt 0:04:27]} 18. Qe3 {[%emt 0:00:39]} b5 {[%emt 0:03:10]} 19. axb5 {[%emt 0:00:17]} axb5 {[%emt 0:00:00]} 20. g4 {[%emt 0:01:21]} Ne6 {[%emt 0:07:49]} 21. Ne2 {[%emt 0:01:27]} g5 {[%emt 0:06:11]} 22. fxg5 {[%emt 0:01:57]} fxg5 {[%emt 0:01:00]} 23. Rxf8 {[%emt 0:01:58]} Rxf8 {[%emt 0:00:00]} 24. Rxf8 {[%emt 0:00:32]} Kxf8 {[%emt 0:00:11]} 25. Qf2+ {[%emt 0:04:48]} Kg7 {[%emt 0:02:47]} 26. c3 {[%emt 0:08:33]} Qa7 {[%emt 0:02:22]} 27. Ng3 {[%emt 0:00:04]} Nf4 {[%emt 0:01:32]} 28. Bf1 {[%emt 0:01:48]} Qb6 {[%emt 0:09:40]} 29. Nh5+ {[%emt 0:03:05]} Kg6 {[%emt 0:04:58]} 30. h4 {[%emt 0:02:05]} h6 {[%emt 0:03:35]} 31. hxg5 {[%emt 0:00:34]} hxg5 {[%emt 0:00:52]} 32. Nxf4+ {[%emt 0:00:48]} exf4 {[%emt 0:01:34]} 33. Qh2 {[%emt 0:00:18]} Qd8 {[%emt 0:01:23]} 34. d4 {[%emt 0:01:11]} c4 {[%emt 0:01:21]} 35. Qh5+ {[%emt 0:01:00]} Kf6 {[%emt 0:00:30]} 36. Qh6+ {[%emt 0:00:00]} Ng6 {[%emt 0:01:46]} 37. e5+ {[%emt 0:00:00]} dxe5 {[%emt 0:00:10]} 38. dxe5+ {[%emt 0:00:00]} Kxe5 {[%emt 0:01:20]} 39. Qxg6 {[%emt 0:00:06]} Qd2 {[%emt 0:00:01]} 40. Qxg5+ {[%emt 0:01:11]} Kd6 {[%emt 0:00:27]} 41. Qd8+ {[%emt 0:00:05]} 1-0

[Event "Eurasia Open Cup 2019"]
[Site "Ekaterinburg"]
[Date "2019.08.06"]
[Round "6.40"]
[White "Fomin, Pavel V."]
[Black "Iljushina, Olga"]
[Result "0-1"]
[ECO "A36"]
[WhiteElo "2103"]
[BlackElo "2208"]
[Annotator "NA"]
[PlyCount "56"]
[EventDate "2019.07.31"]
[EventType "swiss"]
[EventCountry "RUS"]
[SourceTitle "playchess.com"]
[Source "ChessBase"]
[SourceQuality "1"]
[TimeControl "5400+30"]

1. c4 {[%emt 0:00:00]} c5 {[%emt 0:00:00]} 2. g3 {[%emt 0:00:00]} Nc6 {[%emt 0:00:00]} 3. Bg2 {[%emt 0:00:00]} g6 {[%emt 0:00:00]} 4. e4 {[%emt 0:00:00]} Bg7 {[%emt 0:00:19]} 5. Ne2 {[%emt 0:00:00]} d6 {[%emt 0:01:01]} 6. Nbc3 {[%emt 0:01:17]} e5 {[%emt 0:00:30]} 7. O-O {[%emt 0:00:51]} Be6 {[%emt 0:00:25]} 8. d3 {[%emt 0:00:05]} Qd7 {[%emt 0:00:20]} 9. a3 {[%emt 0:00:55]} Bh3 {[%emt 0:01:59]} 10. f4 {[%emt 0:01:25]} h5 {[%emt 0:01:37]} 11. Nd5 {[%emt 0:07:59]} Bxg2 {[%emt 0:04:06]} 12. Kxg2 {[%emt 0:00:10]} h4 {[%emt 0:00:30]} 13. f5 {[%emt 0:00:05]} gxf5 {[%emt 0:02:35]} 14. exf5 {[%emt 0:04:13]} hxg3 {[%emt 0:04:13]} 15. Nxg3 {[%emt 0:04:44]} O-O-O {[%emt 0:05:09]} 16. Be3 {[%emt 0:01:58]} Bh6 {[%emt 0:05:08]} 17. Bg1 {[%emt 0:29:30]} Nce7 {[%emt 0:02:51]} 18. Nxe7+ {[%emt 0:00:16]} Nxe7 {[%emt 0:01:00]} 19. b4 {[%emt 0:00:05]} Bf4 {[%emt 0:00:55]} 20. Qf3 {[%emt 0:04:22]} Rdg8 {[%emt 0:03:41]} 21. Qe4 {[%emt 0:02:51]} Nxf5 {[%emt 0:02:06]} 22. Rxf4 {[%emt 0:01:00]} Nxg3 {[%emt 0:01:56]} 23. hxg3 {[%emt 0:00:25]} Qh3+ {[%emt 0:00:15]} 24. Kf2 {[%emt 0:00:40]} Qxg3+ {[%emt 0:00:35]} 25. Ke2 {[%emt 0:00:00]} Qxf4 {[%emt 0:01:32]} 26. Qxf4 {[%emt 0:00:35]} exf4 {[%emt 0:00:05]} 27. Rf1 {[%emt 0:05:54]} Rh1 {[%emt 0:00:41]} 28. Bf2 {[%emt 0:01:06]} Re8+ {[%emt 0:00:26]} 0-1

[Event "Eurasia Open Cup 2019"]
[Site "Ekaterinburg"]
[Date "2019.08.06"]
[Round "6.41"]
[White "Hamitevici, Vladimir"]
[Black "Kirillov, Anton"]
[Result "1-0"]
[ECO "A06"]
[WhiteElo "2480"]
[BlackElo "1855"]
[Annotator "ChessBase"]
[PlyCount "87"]
[EventDate "2019.07.31"]
[EventType "swiss"]
[EventCountry "RUS"]
[SourceTitle "playchess.com"]
[Source "ChessBase"]
[SourceQuality "1"]
[TimeControl "5400+30"]

1. b3 {[%emt 0:00:00]} d5 {[%emt 0:00:00]} 2. Bb2 {[%emt 0:00:00]} c5 {[%emt 0:00:00]} 3. Nf3 {[%emt 0:00:30]} Nf6 {[%emt 0:00:15]} 4. g3 {[%emt 0:00:15]} g6 {[%emt 0:00:46]} 5. c4 {[%emt 0:00:25]} d4 {[%emt 0:00:56]} 6. b4 {[%emt 0:00:10]} b6 {[%emt 0:02:42]} 7. Nxd4 {[%emt 0:01:11]} Bb7 {[%emt 0:04:56]} 8. Nf3 {[%emt 0:01:20]} cxb4 {[%emt 0:01:06]} 9. Qa4+ {[%emt 0:02:55]} Nbd7 {[%emt 0:09:27]} 10. Qxb4 {[%emt 0:00:15]} Bg7 {[%emt 0:00:40]} 11. Bg2 {[%emt 0:00:45]} O-O {[%emt 0:01:12]} 12. O-O {[%emt 0:00:15]} Rc8 {[%emt 0:05:15]} 13. d3 {[%emt 0:01:41]} Re8 {[%emt 0:04:04]} 14. Qa3 {[%emt 0:22:32]} Qc7 {[%emt 0:03:00]} 15. Nc3 {[%emt 0:05:39]} Qb8 {[%emt 0:00:25]} 16. Ne1 {[%emt 0:10:39]} Nc5 {[%emt 0:04:37]} 17. Rb1 {[%emt 0:01:15]} e5 {[%emt 0:04:32]} 18. Bxb7 {[%emt 0:01:50]} Nxb7 {[%emt 0:00:25]} 19. Nb5 {[%emt 0:00:57]} a5 {[%emt 0:10:57]} 20. Ng2 {[%emt 0:01:29]} Nc5 {[%emt 0:00:03]} 21. Bc1 {[%emt 0:00:29]} Red8 {[%emt 0:01:26]} 22. Bg5 {[%emt 0:00:14]} e4 {[%emt 0:05:37]} 23. Bf4 {[%emt 0:00:00]} Qa8 {[%emt 0:00:44]} 24. Bc7 {[%emt 0:00:19]} exd3 {[%emt 0:03:22]} 25. Bxd8 {[%emt 0:00:05]} dxe2 {[%emt 0:00:05]} 26. Rfe1 {[%emt 0:00:24]} Rxd8 {[%emt 0:00:05]} 27. Rxe2 {[%emt 0:00:33]} Nfe4 {[%emt 0:08:29]} 28. Nc7 {[%emt 0:00:42]} Qc8 {[%emt 0:00:19]} 29. Nd5 {[%emt 0:00:23]} Qg4 {[%emt 0:01:09]} 30. Rbe1 {[%emt 0:00:45]} f5 {[%emt 0:03:48]} 31. Qe3 {[%emt 0:02:23]} Ng5 {[%emt 0:01:32]} 32. Qe8+ {[%emt 0:01:41]} Rxe8 {[%emt 0:00:41]} 33. Rxe8+ {[%emt 0:00:04]} Bf8 {[%emt 0:00:05]} 34. Nf6+ {[%emt 0:00:09]} Kf7 {[%emt 0:00:59]} 35. Nxg4 {[%emt 0:01:00]} Nf3+ {[%emt 0:00:00]} 36. Kf1 {[%emt 0:00:28]} Nxe1 {[%emt 0:00:09]} 37. Rxe1 {[%emt 0:00:09]} fxg4 {[%emt 0:00:09]} 38. Ne3 {[%emt 0:00:46]} h5 {[%emt 0:00:14]} 39. Nd5 {[%emt 0:00:19]} Na4 {[%emt 0:00:04]} 40. Re2 {[%emt 0:01:32]} Bc5 {[%emt 0:00:28]} 41. Ke1 {[%emt 0:00:47]} Bd4 {[%emt 0:00:23]} 42. Kd2 {[%emt 0:00:58]} Nb2 {[%emt 0:00:18]} 43. Kc2 {[%emt 0:00:22]} Nxc4 {[%emt 0:00:36]} 44. Kd3 {[%emt 0:00:14]} 1-0

[Event "Eurasia Open Cup 2019"]
[Site "Ekaterinburg"]
[Date "2019.08.06"]
[Round "6.42"]
[White "Eliseev, Mikhail"]
[Black "Savitskiy, Sergey"]
[Result "0-1"]
[ECO "A36"]
[WhiteElo "2173"]
[BlackElo "2418"]
[Annotator "NA"]
[PlyCount "68"]
[EventDate "2019.07.31"]
[EventType "swiss"]
[EventCountry "RUS"]
[SourceTitle "playchess.com"]
[Source "ChessBase"]
[SourceQuality "1"]
[TimeControl "5400+30"]

1. e4 {[%emt 0:00:00]} c5 {[%emt 0:00:00]} 2. c4 {[%emt 0:00:00]} Nc6 {[%emt 0:00:00]} 3. Nc3 {[%emt 0:00:00]} g6 {[%emt 0:00:25]} 4. g3 {[%emt 0:00:00]} Bg7 {[%emt 0:00:00]} 5. Bg2 {[%emt 0:00:00]} Nf6 {[%emt 0:00:05]} 6. Nge2 {[%emt 0:00:06]} O-O {[%emt 0:00:05]} 7. d3 {[%emt 0:00:15]} Ne8 {[%emt 0:00:05]} 8. h4 {[%emt 0:02:16]} h5 {[%emt 0:01:31]} 9. g4 {[%emt 0:05:00]} hxg4 {[%emt 0:12:56]} 10. h5 {[%emt 0:03:21]} Nf6 {[%emt 0:01:30]} 11. Ng3 {[%emt 0:03:32]} d6 {[%emt 0:02:07]} 12. Be3 {[%emt 0:02:52]} Ne5 {[%emt 0:05:31]} 13. Qd2 {[%emt 0:01:16]} Be6 {[%emt 0:03:49]} 14. Bg5 {[%emt 0:13:36]} Nh7 {[%emt 0:03:41]} 15. hxg6 {[%emt 0:05:30]} Nxg5 {[%emt 0:01:05]} 16. Qxg5 {[%emt 0:00:10]} fxg6 {[%emt 0:00:15]} 17. Qe3 {[%emt 0:08:05]} b5 {[%emt 0:01:15]} 18. cxb5 {[%emt 0:04:17]} a6 {[%emt 0:01:25]} 19. bxa6 {[%emt 0:07:48]} Rxa6 {[%emt 0:05:52]} 20. Nge2 {[%emt 0:00:30]} c4 {[%emt 0:01:36]} 21. Rd1 {[%emt 0:08:10]} cxd3 {[%emt 0:07:56]} 22. Rxd3 {[%emt 0:00:39]} Nxd3+ {[%emt 0:02:44]} 23. Qxd3 {[%emt 0:00:10]} Qb6 {[%emt 0:03:43]} 24. O-O {[%emt 0:00:58]} Ra5 {[%emt 0:00:39]} 25. Nd5 {[%emt 0:01:27]} Bxd5 {[%emt 0:00:47]} 26. exd5 {[%emt 0:00:10]} Qxb2 {[%emt 0:01:07]} 27. Ng3 {[%emt 0:09:13]} Rxa2 {[%emt 0:01:59]} 28. Ne4 {[%emt 0:08:24]} Qe5 {[%emt 0:02:08]} 29. Ng3 {[%emt 0:01:09]} Qf6 {[%emt 0:00:41]} 30. Ne4 {[%emt 0:01:59]} Qf4 {[%emt 0:00:14]} 31. Qb1 {[%emt 0:06:15]} Rb2 {[%emt 0:01:57]} 32. Qd3 {[%emt 0:00:12]} Be5 {[%emt 0:00:47]} 33. Ng3 {[%emt 0:00:09]} Kg7 {[%emt 0:00:08]} 34. Re1 {[%emt 0:08:13]} Qxf2+ {[%emt 0:00:12]} 0-1